lending/lending_fUSD_20260124
["ID","MTS","AMOUNT","RATE_DAILY","PERIOD"]
[403238035,1769277049922,-300.0,0.00017999,2]
[403238037,1769277049931,-300.0,0.00017999,2]
[403238039,1769277049941,-300.0,0.00017999,2]
[403238041,1769277049950,-150.0,0.00017999,2]
[403238043,1769277049959,-5421987.3847839,0.00018,2]
[403238069,1769277050185,-372.80333372,0.00018,2]
[403238071,1769277050197,-3561.99998,0.00018,2]
[403238073,1769277050208,-315.041611,0.00018,2]
[403238075,1769277050219,-335.38,0.00018,2]
[403238078,1769277050235,-2185.20892599,0.00018,2]
[403238177,1769277051330,-1828.871493,0.00018,2]
[403238179,1769277051342,-2621.20919986,0.00018,2]
[403238184,1769277051391,-557.03534068,0.00018,2]
[403238186,1769277051402,-894.62862824,0.00018,2]
[403238188,1769277051413,-459.88021604,0.00018,2]
[403238195,1769277051486,-110609.64810944,0.00018,2]
[403238196,1769277051496,-500.0,0.00018,2]
[403238198,1769277051506,-500.0,0.00018,2]
[403238200,1769277051515,-500.0,0.00018,2]
[403238202,1769277051525,-500.0,0.00018,2]
[403238203,1769277051534,-500.0,0.00018,2]
[403238205,1769277051544,-500.0,0.00018,2]
[403238207,1769277051553,-500.0,0.00018,2]
[403238209,1769277051563,-500.0,0.00018,2]
[403238211,1769277051573,-500.0,0.00018,2]
[403238212,1769277051582,-500.0,0.00018,2]
[403238214,1769277051592,-500.0,0.00018,2]
[403238216,1769277051601,-500.0,0.00018,2]
[403238218,1769277051610,-500.0,0.00018,2]
[403238220,1769277051619,-500.0,0.00018,2]
[403238221,1769277051629,-500.0,0.00018,2]
[403238223,1769277051638,-500.0,0.00018,2]
[403238225,1769277051647,-500.0,0.00018,2]
[403238227,1769277051657,-500.0,0.00018,2]
[403238229,1769277051666,-500.0,0.00018,2]
[403238230,1769277051675,-500.0,0.00018,2]
[403238232,1769277051685,-500.0,0.00018,2]
[403238234,1769277051698,-500.0,0.00018,2]
[403238236,1769277051707,-500.0,0.00018,2]
[403238238,1769277051716,-500.0,0.00018,2]
[403238239,1769277051725,-500.0,0.00018,2]
[403238241,1769277051735,-500.0,0.00018,2]
[403238243,1769277051744,-403.1,0.00018,2]
[403238245,1769277051753,-200.0,0.00018,2]
[403238246,1769277051764,-958127.58616201,0.00018,2]
[403238440,1769277054024,-50.75701028,0.00012918,2]
[403238449,1769277054100,-100.24298972,0.00012918,2]
[403238451,1769277054110,-12068.87312201,0.00018,2]
[403238453,1769277054121,-8723.45478742,0.00018,2]
[403238652,1769277056142,-11313.8074547,0.00018,2]
[403238656,1769277056176,-3142.2,0.00018,2]
[403238660,1769277056197,-1350.06880268,0.00018,2]
[403239285,1769277062430,314.57275196,0.00010747,2]
[403241567,1769277131889,151.0,0.00010903,2]
[403241568,1769277132964,151.0,0.00010903,2]
[403241569,1769277133639,151.0,0.00010903,2]
[403241570,1769277134005,151.0,0.00010903,2]
[403241571,1769277134689,151.0,0.00010903,2]
[403241572,1769277135381,151.0,0.00010903,2]
[403241573,1769277136183,151.0,0.00010903,2]
[403241574,1769277136720,151.0,0.00010903,2]
[403241575,1769277137396,151.0,0.00010903,2]
[403241576,1769277138621,200.0,0.00010903,2]
[403241577,1769277138706,151.0,0.00010903,2]
[403241578,1769277139185,151.0,0.00010903,2]
[403241579,1769277150420,-205.31223109,0.00010903,2]
[403241580,1769277152714,-202.66934458,0.00010903,2]
[403241581,1769277153710,-92.01842433,0.00010903,2]
[403241582,1769277153736,-138.55060107,0.00010903,2]
[403241583,1769277156054,-12.44939893,0.00010903,2]
[403241584,1769277156075,-353.50795223,0.00010903,2]
[403241585,1769277156106,-146.49204777,0.00010903,2]
[403241586,1769277156134,-151.0,0.00010903,2]
[403241587,1769277156163,-500.0,0.00010903,2]
[403241588,1769277156193,-151.0,0.00010903,2]
[403241589,1769277156222,-500.0,0.00010903,2]
[403241590,1769277156250,-151.0,0.00010903,2]
[403241591,1769277156280,-500.0,0.00010903,2]
[403241592,1769277156308,-500.0,0.00010903,2]
[403241593,1769277156336,-151.0,0.00010903,2]
[403241594,1769277156367,-500.0,0.00010903,2]
[403241595,1769277156395,-500.0,0.00010903,2]
[403241596,1769277156422,-500.0,0.00010903,2]
[403241597,1769277156449,-151.0,0.00010903,2]
[403241598,1769277156478,-500.0,0.00010903,2]
[403241599,1769277156506,-46.02590446,0.00010903,2]
[403241600,1769277156802,-104.97409554,0.00010903,2]
[403241601,1769277156831,-500.0,0.00010903,2]
[403241602,1769277156858,-500.0,0.00010903,2]
[403241603,1769277156886,-500.0,0.00010903,2]
[403241604,1769277156922,-200.10887185,0.00010903,2]
[403241605,1769277156952,-500.0,0.00010903,2]
[403241606,1769277156983,-500.0,0.00010903,2]
[403241607,1769277157011,-500.0,0.00010903,2]
[403241608,1769277157041,-500.0,0.00010903,2]
[403241609,1769277157185,500.0,0.00010903,2]
[403241610,1769277158318,422.17952928,0.00010903,2]
[403241611,1769277160926,500.0,0.00010903,2]
[403241612,1769277161442,202.09093963,0.00010903,2]
[403241613,1769277175577,10000.01,0.00010654,2]
[403241614,1769277175601,10000.01,0.00010654,2]
[403241615,1769277175625,10000.01,0.00010654,2]
[403241616,1769277175648,10000.01,0.00010654,2]
[403241617,1769277175672,10000.01,0.00010654,2]
[403241618,1769277175694,10000.01,0.00010654,2]
[403241619,1769277175719,10000.01,0.00010654,2]
[403241620,1769277175746,10000.01,0.00010654,2]
[403241621,1769277175770,10000.01,0.00010654,2]
[403241622,1769277175793,10000.01,0.00010654,2]
[403241623,1769277176478,-255.99487451,0.00010654,2]
[403241624,1769277178007,-208.68743832,0.00010654,2]
[403241625,1769277179497,-417.63882727,0.00010654,2]
[403241627,1769277184233,-165.38514202,0.00010654,2]
[403241628,1769277184290,-6305.14087467,0.00010654,2]
[403241629,1769277184316,-10000.01,0.00010654,2]
[403241630,1769277184552,-10000.01,0.00010654,2]
[403241631,1769277184799,-10000.01,0.00010654,2]
[403241632,1769277185100,-10000.01,0.00010654,2]
[403241633,1769277185366,-10000.01,0.00010654,2]
[403241634,1769277185669,-10000.01,0.00010654,2]
[403241635,1769277185904,-10000.01,0.00010654,2]
[403241636,1769277186055,-517.21817955,0.00010654,2]
[403241637,1769277188379,-252.42994815,0.00010654,2]
[403241638,1769277189440,-10000.01,0.00010654,2]
[403241639,1769277189533,-10000.01,0.00010654,2]
[403241640,1769277190178,-174.33941195,0.00010654,2]
[403241641,1769277192705,-155.37336821,0.00010654,2]
[403241642,1769277194227,-414.97887234,0.00010654,2]
[403241643,1769277196086,-325.99429222,0.00010654,2]
[403241644,1769277198635,-289.93340482,0.00010654,2]
[403241645,1769277201824,-215.19509579,0.00010653,2]
[403241648,1769277203444,-168.51961922,0.00010653,2]
[403241649,1769277205831,-103.28528499,0.00010653,2]
[403241650,1769277205856,-142.41547383,0.00010654,2]
[403241651,1769277207707,-300.0,0.00010654,2]
[403241652,1769277208198,-10000.01,0.00010654,2]
[403241653,1769277208399,-10000.01,0.00010654,2]
[403241654,1769277208556,-10000.01,0.00010654,2]
[403241655,1769277209159,-10000.01,0.00010654,2]
[403241656,1769277209291,-10000.01,0.00010654,2]
[403241657,1769277209359,-10000.01,0.00010654,2]
[403241658,1769277209512,-10000.01,0.00010654,2]
[403241659,1769277209525,-10000.01,0.00010654,2]
[403241660,1769277209894,-302.09362044,0.00010654,2]
[403241661,1769277212955,-192.212083,0.00010654,2]
[403241662,1769277213919,-327.383036,0.00010654,2]
[403241663,1769277214346,-10000.01,0.00010654,2]
[403241664,1769277215042,-10000.01,0.00010654,2]
[403241665,1769277215057,-10000.01,0.00010654,2]
[403241666,1769277215173,-10000.01,0.00010654,2]
[403241667,1769277215339,-10000.01,0.00010654,2]
[403241668,1769277215456,-10000.01,0.00010654,2]
[403241669,1769277215571,-10000.01,0.00010654,2]
[403241670,1769277215774,-10000.01,0.00010654,2]
[403241671,1769277216435,-300.0,0.00010654,2]
[403241672,1769277217930,-190.28,0.00010654,2]
[403241673,1769277219937,-268.49282929,0.00010654,2]
[403241674,1769277220660,-10000.01,0.00010654,2]
[403241675,1769277221829,-228.98259848,0.00010654,2]
[403241676,1769277226528,-204.24807551,0.00010654,2]
[403241677,1769277226670,-10000.01,0.00010654,2]
[403241678,1769277228132,-197.90637956,0.00010654,2]
[403241679,1769277229886,-10000.01,0.00010654,2]
[403241680,1769277230055,-10000.01,0.00010654,2]
[403241681,1769277230134,-231.50717071,0.00010654,2]
[403241682,1769277231666,-300.46683019,0.00010654,2]
[403241683,1769277232841,-10000.01,0.00010654,2]
[403241684,1769277234545,-211.005736,0.00010654,2]
[403241685,1769277235891,-692.79755332,0.00010654,2]
[403241686,1769277235959,-10000.01,0.00010654,2]
[403241687,1769277238690,-253.16067858,0.00010654,2]
[403241688,1769277240132,-167.29847352,0.000106,2]
[403241689,1769277241488,-207.85486689,0.000106,2]
[403241691,1769277242922,-222.33233815,0.000106,2]
[403241692,1769277245454,-216.17750244,0.000106,2]
[403241693,1769277245476,-23.43699548,0.00010653,2]
[403241694,1769277248059,-126.56300452,0.00010653,2]
[403241695,1769277248087,-63.76019637,0.00010654,2]
[403241696,1769277250080,-162.30962503,0.00010654,2]
[403241697,1769277257147,-311.02179637,0.00010654,2]
[403241698,1769277259786,-230.01,0.00010654,2]
[403241701,1769277301277,-300.0,0.00010653,2]
[403241702,1769277301308,-1200.0,0.00010653,2]
[403241703,1769277301342,-300.0,0.00010653,2]
[403241704,1769277301465,-6400.01,0.00010654,2]
[403241705,1769277301612,-10000.01,0.00010654,2]
[403241706,1769277301698,-10000.01,0.00010654,2]
[403241708,1769277307409,-10000.01,0.00010654,2]
[403241709,1769277308435,-10000.01,0.00010654,2]
[403241711,1769277309165,-10000.01,0.00010654,2]
[403241714,1769277388651,-2057.19724691,0.00010554,2]
[403241715,1769277388681,-300.0,0.00010653,2]
[403241716,1769277388775,-5285.61550618,0.00010654,2]
[403241717,1769277394726,-10000.01,0.00010654,2]
[403241718,1769277398348,-260.40167576,0.00010654,2]
[403241719,1769277401287,-595.09543026,0.00010654,2]
[403241720,1769277402902,-245.75807457,0.00010654,2]
[403241725,1769277483088,187.18,0.00010123,2]
[403241726,1769277490963,-3271.0972,0.00010599,2]
[403241727,1769277490992,-150.0,0.00010653,2]
[403241728,1769277491025,-300.0,0.00010653,2]
[403241729,1769277491124,-2557.8156,0.00010654,2]
[403241730,1769277491212,-10000.01,0.00010654,2]
[403241731,1769277491285,-10000.01,0.00010654,2]
[403241732,1769277494011,-10000.01,0.00010654,2]
[403241733,1769277503432,-1200.0,0.00010653,2]
[403241734,1769277503502,-7600.01,0.00010654,2]
[403241735,1769277503516,-10000.01,0.00010654,2]
[403241747,1769277621791,5533.0,0.000145,5]
[403241748,1769277640355,-224.0,0.00010653,2]
[403241749,1769277640382,-1200.0,0.00010653,2]
[403241750,1769277640410,-300.0,0.00010653,2]
[403241751,1769277640439,-150.0,0.00010653,2]
[403241752,1769277640466,-237.0,0.00010653,2]
[403241753,1769277641260,-5778.01,0.00010654,2]
[403241754,1769277646768,-10000.01,0.00010654,2]
[403241755,1769277653948,5533.0,0.000145,5]
[403241757,1769277686173,5533.0,0.000144,5]
[403241762,1769277717939,783.0,0.000144,5]
[403241764,1769277726848,-300.0,0.00010653,2]
[403241765,1769277726895,-9400.01,0.00010654,2]
[403241766,1769277733196,-151.0,0.00010647,2]
[403241767,1769277733225,-151.0,0.00010647,2]
[403241768,1769277733253,-151.0,0.00010647,2]
[403241769,1769277733450,-500.0,0.00010647,2]
[403241770,1769277733460,-8594.01,0.00010652,2]
[403241771,1769277752622,-151.0,0.00010647,2]
[403241772,1769277752650,-151.0,0.00010647,2]
[403241773,1769277752679,-151.0,0.00010647,2]
[403241774,1769277752706,-151.0,0.00010647,2]
[403241775,1769277752734,-151.0,0.00010647,2]
[403241776,1769277752763,-151.0,0.00010647,2]
[403241777,1769277752791,-151.0,0.00010647,2]
[403241778,1769277752818,-151.0,0.00010647,2]
[403241779,1769277752846,-500.0,0.00010647,2]
[403241780,1769277752879,-500.0,0.00010647,2]
[403241781,1769277752906,-500.0,0.00010647,2]
[403241782,1769277752935,-500.0,0.00010647,2]
[403241783,1769277753270,-500.0,0.00010647,2]
[403241784,1769277753299,-500.0,0.00010647,2]
[403241785,1769277754294,-1584.01,0.00010652,2]
[403241786,1769277754533,-200.0,0.00010647,2]
[403241787,1769277754543,-9800.01,0.00010652,2]
[403241788,1769277755175,-10000.01,0.00010652,2]
[403241789,1769277757789,-10000.01,0.00010652,2]
[403241790,1769277761028,-10000.01,0.00010652,2]
[403241791,1769277761406,-10000.01,0.00010652,2]
[403241792,1769277762266,-10000.01,0.00010652,2]
[403241793,1769277764612,-10000.01,0.00010652,2]
[403241794,1769277767236,-10000.01,0.00010652,2]
[403241795,1769277767273,-10000.01,0.00010652,2]
[403241796,1769277767451,-10000.01,0.00010652,2]
[403241954,1769277954129,-310.9805,0.00010554,2]
[403241955,1769277954150,-880.9582133,0.00010554,2]
[403241956,1769277954171,-150.0,0.00010651,2]
[403241957,1769277954191,-247.0,0.00010651,2]
[403241958,1769277954210,-1200.0,0.00010651,2]
[403241959,1769277954232,-1200.0,0.00010651,2]
[403241960,1769277954253,-23364.47426052,0.00010652,2]
[403242032,1769278097923,-587.30547554,0.00010554,2]
[403242033,1769278097954,-266.71514727,0.00010647,2]
[403242034,1769278097983,-150.0,0.00010651,2]
[403242036,1769278098109,-7991.96875438,0.00010652,2]
[403242039,1769278098181,-10000.01,0.00010652,2]
[403242040,1769278104089,-177.578147,0.00010501,2]
[403242041,1769278104117,-622.0,0.00010651,2]
[403242042,1769278104902,-8400.853706,0.00010652,2]
[403242043,1769278104989,-10000.01,0.00010652,2]
[403242050,1769278171101,-500.0,0.00010552,2]
[403242051,1769278171128,-500.0,0.00010552,2]
[403242052,1769278171156,-500.0,0.00010552,2]
[403242053,1769278171179,-500.0,0.00010552,2]
[403242054,1769278171211,-500.0,0.00010552,2]
[403242055,1769278171237,-500.0,0.00010552,2]
[403242056,1769278171264,-500.0,0.00010552,2]
[403242057,1769278171290,-500.0,0.00010552,2]
[403242058,1769278171317,-500.0,0.00010552,2]
[403242059,1769278171343,-500.0,0.00010552,2]
[403242060,1769278171370,-107.13788694,0.00010552,2]
[403242066,1769278200545,-392.86211306,0.00010552,2]
[403242067,1769278200573,-500.0,0.00010552,2]
[403242068,1769278200601,-500.0,0.00010552,2]
[403242069,1769278200628,-500.0,0.00010552,2]
[403242070,1769278200654,-500.0,0.00010552,2]
[403242071,1769278200680,-500.0,0.00010552,2]
[403242072,1769278200708,-500.0,0.00010552,2]
[403242073,1769278200734,-500.0,0.00010552,2]
[403242074,1769278200762,-500.0,0.00010552,2]
[403242075,1769278200790,-500.0,0.00010552,2]
[403242076,1769278200965,-500.0,0.00010552,2]
[403242077,1769278200992,-500.0,0.00010552,2]
[403242078,1769278201019,-500.0,0.00010552,2]
[403242079,1769278201046,-500.0,0.00010552,2]
[403242080,1769278201076,-500.0,0.00010552,2]
[403242081,1769278201103,-500.0,0.00010552,2]
[403242082,1769278201130,-500.0,0.00010552,2]
[403242083,1769278201158,-500.0,0.00010552,2]
[403242084,1769278201186,-500.0,0.00010552,2]
[403242085,1769278201214,-500.0,0.00010552,2]
[403242086,1769278201502,-500.0,0.00010552,2]
[403242087,1769278201528,-438.84409143,0.00010552,2]
[403242088,1769278201555,-300.0,0.0001065,2]
[403242089,1769278201583,-150.0,0.0001065,2]
[403242090,1769278202060,300.0,0.00010551,2]
[403242091,1769278202098,1200.0,0.00010551,2]
[403242093,1769278203656,236.0,0.00010552,2]
[403242094,1769278206723,391.53698368,0.00010554,2]
[403242096,1769278207821,5094.78483346,0.00010552,2]
[403242097,1769278207849,10000.01,0.00010552,2]
[403242098,1769278207876,10000.01,0.00010552,2]
[403242099,1769278207903,10000.01,0.00010552,2]
[403242133,1769278232939,-97912.23144324,0.00010552,2]
[403242134,1769278233041,-26519.41884348,0.00010552,2]
[403242135,1769278233052,-8027.97513753,0.00010552,2]
[403242141,1769278238396,-6000.89731925,0.00010552,2]
[403242142,1769278238588,-485.4300017,0.00010552,2]
[403242143,1769278238600,-2224.17408572,0.00010552,2]
[403242381,1769278240902,-254.28543289,0.00010552,2]
[403242383,1769278240913,-689.63950002,0.00010552,2]
[403242385,1769278240924,-139663.77610177,0.00010552,2]
[403242394,1769278240985,-683127.35730094,0.00010552,2]
[403242396,1769278240995,-193.79334131,0.00010651,2]
[403242398,1769278241005,-367.86373149,0.00010651,2]
[403242400,1769278241014,-500.0,0.00010651,2]
[403242402,1769278241023,-508.68371921,0.00010651,2]
[403242404,1769278241032,-500.0,0.00010651,2]
[403242406,1769278241040,-234.863105,0.00010651,2]
[403242408,1769278241050,-500.0,0.00010651,2]
[403242410,1769278241059,-500.0,0.00010651,2]
[403242412,1769278241069,-500.0,0.00010651,2]
[403242414,1769278241083,-181.89408261,0.00010651,2]
[403242416,1769278241096,-500.0,0.00010651,2]
[403242418,1769278241106,-505.17359471,0.00010651,2]
[403242420,1769278241115,-500.0,0.00010651,2]
[403242422,1769278241124,-280.5,0.00010651,2]
[403242424,1769278241133,-500.0,0.00010651,2]
[403242426,1769278241142,-500.0,0.00010651,2]
[403242428,1769278241150,-500.0,0.00010651,2]
[403242429,1769278241160,-500.0,0.00010651,2]
[403242432,1769278241170,-500.0,0.00010651,2]
[403242434,1769278241179,-500.0,0.00010651,2]
[403242436,1769278241188,-500.0,0.00010651,2]
[403242438,1769278241198,-1722.94667136,0.00010651,2]
[403242440,1769278241207,-1722.94667136,0.00010651,2]
[403242442,1769278241216,-232.82713829,0.00010651,2]
[403242444,1769278241225,-500.0,0.00010651,2]
[403242446,1769278241234,-1722.94667136,0.00010651,2]
[403242448,1769278241243,-1722.94667136,0.00010651,2]
[403242450,1769278241252,-500.0,0.00010651,2]
[403242452,1769278241261,-1722.94667136,0.00010651,2]
[403242454,1769278241271,-497.54017078,0.00010651,2]
[403242456,1769278241280,-1722.94667136,0.00010651,2]
[403242458,1769278241289,-1722.94667136,0.00010651,2]
[403242460,1769278241298,-1722.94667136,0.00010651,2]
[403242462,1769278241308,-1722.94667136,0.00010651,2]
[403242464,1769278241318,-500.0,0.00010651,2]
[403242467,1769278241337,-1722.94667136,0.00010651,2]
[403242469,1769278241348,-1722.94667136,0.00010651,2]
[403242471,1769278241357,-1722.94667136,0.00010651,2]
[403242473,1769278241366,-1722.94667136,0.00010651,2]
[403242475,1769278241375,-1722.94667136,0.00010651,2]
[403242477,1769278241385,-1722.94667136,0.00010651,2]
[403242479,1769278241394,-1722.94667136,0.00010651,2]
[403242481,1769278241403,-1722.94667136,0.00010651,2]
[403242483,1769278241413,-1722.94667136,0.00010651,2]
[403242485,1769278241422,-1722.94667136,0.00010651,2]
[403242487,1769278241431,-1722.94667136,0.00010651,2]
[403242488,1769278241440,-1722.94667136,0.00010651,2]
[403242489,1769278241450,-1722.94667136,0.00010651,2]
[403242490,1769278241459,-1722.94667136,0.00010651,2]
[403242491,1769278241468,-1722.94667136,0.00010651,2]
[403242492,1769278241478,-1722.94667136,0.00010651,2]
[403242493,1769278241488,-1722.94667136,0.00010651,2]
[403242494,1769278241498,-1722.94667136,0.00010651,2]
[403242495,1769278241508,-1722.94667136,0.00010651,2]
[403242496,1769278241517,-1722.94667136,0.00010651,2]
[403242497,1769278241527,-1722.94667136,0.00010651,2]
[403242498,1769278241537,-1722.94667136,0.00010651,2]
[403242499,1769278241547,-1722.94667136,0.00010651,2]
[403242500,1769278241556,-1722.94667136,0.00010651,2]
[403242501,1769278241566,-1722.94667136,0.00010651,2]
[403242502,1769278241575,-1722.94667136,0.00010651,2]
[403242504,1769278241585,-1722.94667136,0.00010651,2]
[403242505,1769278241594,-1722.94667136,0.00010651,2]
[403242506,1769278241604,-1722.94667136,0.00010651,2]
[403242507,1769278241614,-1722.94667136,0.00010651,2]
[403242508,1769278241623,-1722.94667136,0.00010651,2]
[403242510,1769278241632,-1722.94667136,0.00010651,2]
[403242512,1769278241642,-1722.94667136,0.00010651,2]
[403242514,1769278241651,-1722.94667136,0.00010651,2]
[403242517,1769278241661,-1722.94667136,0.00010651,2]
[403242519,1769278241670,-1722.94667136,0.00010651,2]
[403242521,1769278241679,-1722.94667136,0.00010651,2]
[403242523,1769278241688,-1722.94667135,0.00010651,2]
[403242525,1769278241699,-1722.94667136,0.00010651,2]
[403242527,1769278241709,-1722.94667136,0.00010651,2]
[403242529,1769278241719,-558.17448875,0.00010651,2]
[403242531,1769278241728,-1722.94667136,0.00010651,2]
[403242533,1769278241737,-1722.94667136,0.00010651,2]
[403242535,1769278241746,-1722.94667136,0.00010651,2]
[403242537,1769278241756,-1722.94667136,0.00010651,2]
[403242539,1769278241766,-1722.94667136,0.00010651,2]
[403242541,1769278241775,-1679.87300456,0.00010651,2]
[403242543,1769278241784,-1679.87300456,0.00010651,2]
[403242545,1769278241794,-1679.87300456,0.00010651,2]
[403242547,1769278241803,-1679.87300456,0.00010651,2]
[403242549,1769278241812,-1679.87300456,0.00010651,2]
[403242551,1769278241821,-1679.87300456,0.00010651,2]
[403242553,1769278241830,-1679.87300456,0.00010651,2]
[403242555,1769278241840,-1679.87300456,0.00010651,2]
[403242557,1769278241849,-1679.87300456,0.00010651,2]
[403242559,1769278241858,-1679.87300456,0.00010651,2]
[403242561,1769278241867,-1679.87300456,0.00010651,2]
[403242563,1769278241880,-1679.87300456,0.00010651,2]
[403242565,1769278241890,-1679.87300456,0.00010651,2]
[403242567,1769278241899,-1679.87300456,0.00010651,2]
[403242569,1769278241908,-1679.87300456,0.00010651,2]
[403242571,1769278241917,-1679.87300456,0.00010651,2]
[403242574,1769278241928,-1679.87300456,0.00010651,2]
[403242576,1769278241937,-1679.87300456,0.00010651,2]
[403242578,1769278241947,-1679.87300456,0.00010651,2]
[403242580,1769278241956,-1679.87300456,0.00010651,2]
[403242582,1769278241966,-1679.87300456,0.00010651,2]
[403242584,1769278241975,-1679.87300456,0.00010651,2]
[403242586,1769278241985,-1679.87300456,0.00010651,2]
[403242588,1769278241995,-1679.87300456,0.00010651,2]
[403242590,1769278242005,-1679.87300456,0.00010651,2]
[403242592,1769278242014,-1679.87300456,0.00010651,2]
[403242594,1769278242024,-1679.87300456,0.00010651,2]
[403242596,1769278242033,-1679.87300456,0.00010651,2]
[403242598,1769278242044,-1679.87300456,0.00010651,2]
[403242600,1769278242054,-1679.87300456,0.00010651,2]
[403242602,1769278242064,-1679.87300456,0.00010651,2]
[403242604,1769278242073,-1679.87300456,0.00010651,2]
[403242606,1769278242083,-1679.87300456,0.00010651,2]
[403242608,1769278242093,-1679.87300461,0.00010651,2]
[403242610,1769278242103,-1679.87300461,0.00010651,2]
[403242612,1769278242112,-1679.87300461,0.00010651,2]
[403242614,1769278242122,-403437.0532429,0.00010652,2]
[403242616,1769278242131,-398.16215466,0.00010653,2]
[403242618,1769278242141,-185.64315237,0.00010653,2]
[403242620,1769278242150,-178.77712539,0.00010653,2]
[403242622,1769278242160,-1000.0,0.00010654,2]
[403242625,1769278242169,-293.51298884,0.00010654,2]
[403242627,1769278242179,-500.0,0.00010724,2]
[403242629,1769278242188,-909.57,0.00010753,2]
[403242631,1769278242198,-150.16505851,0.00010833,2]
[403242633,1769278242207,-1269.95262623,0.000109,2]
[403242635,1769278242216,-1278.77990514,0.00010903,2]
[403242637,1769278242226,-200.0,0.00010903,2]
[403242639,1769278242235,-200.0,0.00010903,2]
[403242641,1769278242244,-200.0,0.00011012,2]
[403242643,1769278242253,-200.0,0.00011012,2]
[403242645,1769278242266,-909.57,0.00011027,2]
[403242647,1769278242275,-12607.89117582,0.00011099,2]
[403242649,1769278242286,-15611.94,0.00011233,2]
[403242651,1769278242295,-909.57,0.00011301,2]
[403242653,1769278242304,-12607.89117579,0.00011369,2]
[403242655,1769278242314,-240.10558117,0.00011495,2]
[403242657,1769278242326,-391.53698368,0.0001154,2]
[403242659,1769278242336,-250.0,0.00011551,2]
[403242661,1769278242345,-738.0,0.00011568,2]
[403242663,1769278242354,-909.57,0.00011575,2]
[403242665,1769278242364,-420.0,0.000116,2]
[403242667,1769278242373,-1269.95262616,0.00011603,2]
[403242669,1769278242383,-1680.0,0.00011606,2]
[403242671,1769278242392,-300.0,0.00011609,2]
[403242673,1769278242402,-300.0,0.00011609,2]
[403242675,1769278242411,-195.0,0.00011609,2]
[403242677,1769278242421,-255.0,0.00011683,2]
[403242680,1769278242430,-195.0,0.00011715,2]
[403242682,1769278242440,-364.78433551,0.00011715,2]
[403242684,1769278242450,-195.0,0.00011716,2]
[403242686,1769278242459,-250.0,0.00011716,2]
[403242688,1769278242469,-195.0,0.00011716,2]
[403242690,1769278242478,-909.57,0.00011848,2]
[403242692,1769278242490,-185.64315236,0.00011861,2]
[403242694,1769278242499,-909.57,0.00012122,2]
[403242696,1769278242509,-12607.89117579,0.00012186,2]
[403242698,1769278242518,-170.17092774,0.000122,2]
[403242700,1769278242527,-500.0,0.000122,2]
[403242702,1769278242537,-167.94526228,0.000122,2]
[403242704,1769278242547,-177.5178643,0.000122,2]
[403242706,1769278242556,-501.22866478,0.000122,2]
[403242708,1769278242565,-173.62225723,0.000122,2]
[403242710,1769278242574,-166.2984837,0.000122,2]
[403242712,1769278242583,-567.68971129,0.000122,2]
[403242714,1769278242593,-500.0,0.000122,2]
[403242716,1769278242602,-500.0,0.000122,2]
[403242718,1769278242611,-582.09385403,0.000122,2]
[403242720,1769278242621,-500.0,0.000122,2]
[403242722,1769278242630,-500.0,0.000122,2]
[403242724,1769278242644,-500.0,0.000122,2]
[403242727,1769278242653,-500.0,0.000122,2]
[403242728,1769278242663,-500.0,0.000122,2]
[403242731,1769278242672,-278.24022797,0.000122,2]
[403242733,1769278242682,-500.0,0.000122,2]
[403242735,1769278242692,-501.32971868,0.000122,2]
[403242737,1769278242701,-500.0,0.000122,2]
[403242739,1769278242711,-225.21984276,0.000122,2]